Workbook

Sheet Formblatt CO2-Bonus
A2: CO2-Tool_Wood 1.0 (02.2022)
A5: Für den Einsatz nachwachsender, Kohlenstoff speichernder Baustoffe aus nachhaltiger Bewirtschaftung
A6: Status:
A7: Formblatt zur Berechnung der Speicherung biogenen Kohlenstoffs in t CO2
A8: Die grün hinterlegten Felder sind auszufüllen.
A10: BGF (oberirdisch) [m²]:
A12: Anmerkung: Ist das verbaute Material nicht in der Liste vorhanden, muss dieses dem nächstliegenden Datensatz (z. B. Material mit ähnlicher Dichte oder ähnlichem Bauprodukt) zugeordnet werden.
C13: Verbautes Volumen Entsprechend beiliegender Rechnung 1) [m³] | F13: Dichte, inkl. Holzfeuchte 2) [kg/m³] (lutro) | G13: Verbaute Masse (lutro) 1) [kg] | H13: Verbaute Holzmasse (atro + ohne Zusatzstoffe) [kg] | I13: Im Baustoff gebundene Menge biogener Kohlenstoff 3) [kg CO2] | J13: % Zusatzstoffe/Bindemittel | K13: % Holzfeuchte | L13: Kohlenstoff-gehalt [kgC/m³] | M13: Kohlenstoff-gehalt [kg C] | N13: gebundene Menge CO2 [kg CO2] | O13: Quelle Datensatz
A14: Material-Typ | B14: Material 1) | D14: zertifiziert nach FSC, PEFC oder gleichwertig 1) | E14: Zertifikat Nr.
A15: Vollholz in [m³] | B15: Nadelschnittholz | F15: 484.51 | G15: =IF(C15>0,C15*F15," ") ->  | H15: =IF(C15>0,(G15-(G15*J15/100))/(1+(K15/100))," ") ->  | I15: =IF(C15>0,H15*0.5*(44/12)," ") ->  | J15: 0 | K15: 12 | L15: 216.3 | M15: =L15*C15 -> 0 | N15: =M15*44/12 -> 0 | O15: thünen
B16: Konstruktionsvollholz | F16: 492.92 | G16: =IF(C16>0,C16*F16," ") ->  | H16: =IF(C16>0,(G16-(G16*J16/100))/(1+(K16/100))," ") ->  | I16: =IF(C16>0,H16*0.5*(44/12)," ") ->  | J16: =0.043+0.002+0.059 -> 0.104 | K16: 12 | L16: 219.83 | M16: =L16*C16 -> 0 | N16: =M16*44/12 -> 0 | O16: thünen
B17: Balkenschichtholz (Duo-Triobalken) | F17: 500.36 | G17: =IF(C17>0,C17*F17," ") ->  | H17: =IF(C17>0,(G17-(G17*J17/100))/(1+(K17/100))," ") ->  | J17: =0.655+0.031+0.309+0.005 -> 1 | K17: 12 | L17: 221.14 | M17: 0 | N17: 0 | O17: thünen
B18: Brettschichtholz - Standardformen | F18: 507.11 | J18: =1.622+0.058+0.057+0.0003 -> 1.7373 | K18: 12 | L18: 222.46 | M18: 0 | N18: 0 | O18: thünen
B19: Brettschichtholz - Sonderformen | F19: 508.43 | J19: =2.199+0.293+0.011 -> 2.503 | K19: 12 | L19: 221.3 | M19: 0 | N19: 0 | O19: thünen
B20: Brettsperrholz | F20: 489.41 | I20: =IF(C20>0,H20*0.5*(44/12)," ") ->  | J20: =0.814+0.691+0.039 -> 1.544 | K20: 12 | L20: 215.12 | M20: 0 | N20: =M20*44/12 -> 0 | O20: thünen
B21: Laubschnittholz | F21: 761.6 | I21: =IF(C21>0,H21*0.5*(44/12)," ") ->  | J21: 0 | K21: 12 | L21: 340 | M21: 0 | N21: 0 | O21: thünen
A23: Holz- Werkstoffe in [m³] | B23: 3- und 5-Schichtholzplatten | F23: 510.45 | G23: =IF(C23>0,C23*F23," ") ->  | H23: =IF(C23>0,(G23-(G23*J23/100))/(1+(K23/100))," ") ->  | I23: =IF(C23>0,H23*0.5*(44/12)," ") ->  | J23: 3.486 | K23: 12 | L23: 219.94 | M23: =L23*C23 -> 0 | N23: =M23*44/12 -> 0 | O23: thünen
B24: Sperrholz | F24: 823.93 | G24: =IF(C24>0,C24*F24," ") ->  | H24: =IF(C24>0,(G24-(G24*J24/100))/(1+(K24/100))," ") ->  | I24: =IF(C24>0,H24*0.5*(44/12)," ") ->  | J24: 10.87 | K24: 8 | L24: 340 | M24: =L24*C24 -> 0 | N24: 0 | O24: thünen
B25: OSB | F25: 600 | H25: =IF(C25>0,(G25-(G25*J25/100))/(1+(K25/100))," ") ->  | J25: =3.52+1.61+1.89 -> 7.02 | K25: 5 | L25: 265.43 | M25: 0 | N25: 0 | O25: thünen
B26: Röhrenspanplatte | F26: 272 | H26: =IF(C26>0,(G26-(G26*J26/100))/(1+(K26/100))," ") ->  | J26: =7.405+0.125 -> 7.53 | K26: 7 | L26: 117.6 | M26: 0 | N26: 0 | O26: thünen
B27: Spanplatte, melaminbeschichtet | F27: 633.29 | J27: =6.84+1.372+0.001+0.311+0.234+0.082+1.452 -> 10.292 | K27: 7 | L27: 265.48 | M27: 0 | N27: 0 | O27: thünen
B28: Spanplatte, roh | F28: 633.31 | J28: =7.513+0.796+0.065+0.135+0.392+0.22+0.002+0.042 -> 9.165 | K28: 7 | L28: 268.83 | M28: 0 | N28: 0 | O28: thünen
B29: MDF | F29: 737.5 | J29: =12.961+0.631 -> 13.592 | K29: 8 | L29: 295.15 | M29: 0 | N29: 0 | O29: thünen
B30: HDF | F30: 849.92 | H30: =IF(C30>0,(G30-(G30*J30/100))/(1+(K30/100))," ") ->  | I30: =IF(C30>0,H30*0.5*(44/12)," ") ->  | J30: =13.33+0.66 -> 13.99 | K30: 9 | L30: 334.67 | M30: 0 | N30: 0 | O30: thünen
A32: Dämmstoffe in [m³] | B32: Holzwolleleichtbauplatten | F32: 360 | G32: =IF(C32>0,C32*F32," ") ->  | H32: =IF(C32>0,(G32-(G32*J32/100))/(1+(K32/100))," ") ->  | I32: =IF(C32>0,H32*0.5*(44/12)," ") ->  | J32: 5 | K32: 10 | M32: =L32*C32 -> 0 | N32: =M32*44/12 -> 0 | O32: thinkstep
B33: Holzfaserdämmplatte | F33: 150.76 | G33: =IF(C33>0,C33*F33," ") ->  | H33: =IF(C33>0,M33*2," ") ->  | I33: =IF(C33>0,H33*0.5*(44/12)," ") ->  | L33: 64.64 | M33: =L33*C33 -> 0 | N33: =M33*44/12 -> 0 | O33: thünen
B34: Zellulose Faserplatten | F34: 80 | H34: =IF(C34>0,M34*2," ") ->  | I34: =IF(C34>0,H34*0.5*(44/12)," ") ->  | L34: 26 | M34: =L34*C34 -> 0 | N34: =M34*44/12 -> 0 | O34: Sphera Solutions GmbH
B35: Zellulose Einblas-Dämmstoff | F35: 45 | L35: 20.25 | M35: 0 | N35: 0 | O35: Sphera Solutions GmbH
B36: Hanf-/Flachsvlies | F36: 38 | L36: 16.15 | M36: 0 | N36: 0 | O36: Sphera Solutions GmbH
B37: Expandierter Kork | F37: 80 | H37: =IF(C37>0,(G37-(G37*J37/100))/(1+(K37/100))," ") ->  | I37: =IF(C37>0,H37*0.5*(44/12)," ") ->  | K37: 10 | M37: 0 | N37: 0 | O37: thinkstep
B38: Stroh | F38: 100 | H38: =IF(C38>0,(G38-(G38*J38/100))/(1+(K38/100))," ") ->  | I38: =IF(C38>0,H38*0.5*(44/12)," ") ->  | K38: 10 | M38: 0 | N38: =M38*44/12 -> 0 | O38: FASBA e.V.
A40: Vollholz: | F40: Speichermenge biogener Kohlenstoff in t CO2 Gesamt: | I40: =SUM(I15:I21,I23:I30,I32:I38,0)/1000 -> 0
A41: Nadelschnittholz | B41: Datensatz: 3.1.01 Nadelschnittholz - getrocknet (Durchschnitt DE)
A42: Konstruktionsvollholz | B42: Datensatz: 3.1.02 Konstruktionsvollholz (Durchschnitt DE)
A43: Balkenschichtholz (Duo-Triobalken) | B43: Datensatz: 3.1.03 Balkenschichtholz (Durchschnitt DE)
A44: Brettschichtholz - Sonderformen | B44: Datensatz: 3.1.04 Brettschichtholz - Sonderformen (Durchschnitt DE) | F44: Informativ: Speichermenge biogener Kohlenstoff / m2BGF | I44: =IF(C10>0,I40/C10,0) -> 0
A45: Brettschichtholz - Standardformen | B45: Datensatz: 3.1.04 Brettschichtholz - Standardformen (Durchschnitt DE)
A46: Brettsperrholz | B46: Datensatz: 3.1.05 Brettsperrholz (Durchschnitt DE)
A47: Laubschnittholz | B47: Datensatz: 3.1.01 Laubschnittholz - getrocknet (Durchschnitt DE)
A48: Holzwerkstoffe: | F48: 1) Nachvollziehbare Nachweise sind dem Förderantrag als nummerierte Anlage beizulegen.
A49: 3- und 5-Schichtholzplatten | B49: Datensatz: 3.2.01 3- und 5-Schicht Massivholzplatte (Durchschnitt DE)
A50: Sperrholz | B50: Datensatz: 3.2.02 Furniersperrholz (Durchschnitt DE)
A51: OSB | B51: Datensatz: 3.2.04 Oriented Strand Board (Durchschnitt DE) | F51: 2) Quelle: ökobau.dat Version: 2021-II-A2 vom 25.06.2021, Angaben inkl. Holzfeuchte (lutro)
A52: Röhrenspanplatte | B52: Datensatz: 3.2.06 Röhrenspanplatte (Durchschnitt DE)
A53: Spanplatte, melaminbeschichtet | B53: Datensatz: 3.2.06 Spanplatte - melaminbeschichtet (Durchschnitt DE)
A54: Spanplatte, roh | B54: Datensatz: 3.2.06 Spanplatte, roh (Durchschnitt DE) | F54: 3) Nachwachsende regenerative Baustoffe (Masse des Holzes, atro) bestehen zu 50% aus Kohlenstoff (C). Somit enthält 1 kg Baustoff (atro, ohne Zusatzstoffe) 0,5 kg Kohlenstoff (C). Diese Menge an Kohlenstoff (C) ist wiederum in 1,8 kg CO2 gebunden. Ergebnis: 1 kg an nachwachsendem regenerativem Baustoff bindet die Menge an Kohlenstoff, die in 1,8 kg vom Klimagas CO2 enthalten ist.
A55: MDF | B55: Datensatz: 3.2.07 Mitteldichte Faserplatte (Durchschnitt DE)
A56: HDF | B56: Datensatz: 3.2.07 Hochdichte Faserplatte (Durchschnitt DE)
A57: Dämmstoffe:
A58: Holzwolleleichtbauplatten | B58: Datensatz: 2.7.01 Holzwolle-Leichtbauplatte
A59: Holzfaserdämmplatte | B59: Datensatz: 2.10.01 Holzfaserdämmstoff Trockenverfahren (Durchschnitt DE)
A60: Zellulose Faserplatten | B60: Datensatz: 2.11.02 Zellulosefaserplatten
A61: Zellulose Einblas-Dämmstoff | B61: Datensatz: 2.11.01 Zellulosefaser Einblas-Dämmstoff
A62: Hanf-/Flachsvlies | B62: Datensatz: 2.13.01 Hanfvlies/ 2.12.01 Flachsvlies | F62: Erstellungsdatum Arbeitsblatt: 02.2022
A63: Expandierter Kork | B63: Datensatz: 2.9.01 Expandierter Kork
A64: Stroh | B64: Datensatz: 2.23.01 FASBA e.V. Baustroh; 100 kg/m³
A66: Für die Richtigkeit der Angaben:
A69: __________________ | D69: __________________
A77: ______________________________ | D77: ______________________________
A78: Unterschrift Bauherr + Stempel | D78: Unterschrift Architekt + Stempel
I84: © Ruhr-Universität Bochum, Ressourceneffizientes Bauen, Prof. Dr.-Ing. Annette Hafner
